[Event "WSTCC-50 2024"]
[Site "Krakow"]
[Date "2024.07.02"]
[Round "1.7"]
[White "Fox, Anthony"]
[Black "Briestensky, Rastislav"]
[Result "0-1"]
[ECO "B19"]
[WhiteElo "1909"]
[BlackElo "2274"]
[Annotator "TA"]
[PlyCount "132"]
[EventDate "2024.07.01"]
[EventType "team-tourn"]
[EventCountry "POL"]
[SourceTitle "playchess.com"]
[Source "ChessBase"]
[SourceQuality "1"]
[TimeControl "40/5400+30:1800+30"]

{[%evp 34,132,22,33,69,57,61,46,60,39,72,81,112,106,360,78,172,0,0,0,0,0,0,-8,0,0,-8,-7,-16,-44,-42,-42,-30,-121,-132,-129,-127,-147,-141,-155,-135,-162,-121,-139,-137,-142,-141,-260,-239,-29981,-697,-577,-114,-567,-949,-679,-389,-414,-636,-687,-687,-435,-25,-18,-8,-8,-8,-544,-478,-479,-343,-320,-314,-523,-511,-556,-555,-566,-523,-593,-524,-1049,-1068,-1001,-964,-1072,-905,-724,-634,-2519,-5425,-5902,-5110,-29966,-29967,-29964,-29965,-29966,-29969,-29970,-12843]} 1. e4 {[%emt 0:00:30]} c6 {[%emt 0:00:04]} 2. d4 {[%emt 0:00:09]} d5 {[%emt 0:00:06]} 3. Nc3 {[%emt 0:00:11]} dxe4 {[%emt 0:00:08]} 4. Nxe4 {[%emt 0:00:05]} Bf5 {[%emt 0:00:09]} 5. Ng3 {[%emt 0:00:14]} Bg6 {[%emt 0:00:07]} 6. h4 {[%emt 0:00:10]} h6 {[%emt 0:00:07]} 7. Nf3 {[%emt 0:00:06]} Nd7 {[%emt 0:00:06]} 8. h5 {[%emt 0:00:14]} Bh7 {[%emt 0:00:12]} 9. Bd3 {[%emt 0:00:08]} Bxd3 {[%emt 0:00:12]} 10. Qxd3 {[%emt 0:00:06]} e6 {[%emt 0:01:02]} 11. Bd2 {[%emt 0:01:13]} Ngf6 {[%emt 0:00:27]} 12. O-O-O {[%emt 0:03:32]} Qc7 {[%emt 0:01:56]} 13. Ne4 {[%emt 0:03:20]} Nxe4 {[%emt 0:01:09]} 14. Qxe4 {[%emt 0:00:11]} Nf6 {[%emt 0:00:07]} 15. Qe2 {[%emt 0:00:33]} O-O-O {[%emt 0:00:11]} 16. g3 {[%emt 0:09:14]} Bd6 {[%emt 0:09:06]} 17. c4 {[%emt 0:00:54]} c5 {[%emt 0:01:40]} 18. Bc3 {[%emt 0:02:06]} b6 {[%emt 0:06:19]} 19. dxc5 {[%emt 0:21:48]} Bxc5 {[%emt 0:06:32]} 20. Ne5 {[%emt 0:01:48]} Qb7 {[%emt 0:02:37] White is slightly better.} 21. Rhe1 {[%emt 0:05:52]} Rhe8 {[%emt 0:08:08]} 22. b4 {[%emt 0:08:00]} Rxd1+ {[%emt 0:14:30]} 23. Rxd1 {[%emt 0:03:37]} Ne4 {[%emt 0:02:19][%mdl 8192]} (23... Be7 $16) 24. Be1 $2 {[%emt 0:05:44]} (24. bxc5 $18 {and the rest is easy. aiming for c6.} Nxc3 25. Qd2) 24... Bd6 {[%emt 0:03:11]} (24... f6 $16) 25. f4 $2 {[%emt 0:04:26]} (25. Nxf7 $1 $18 Bb8 26. Rd3) 25... f5 {[%emt 0:03:41]} 26. Nf3 {[%emt 0:07:12]} Be7 {[%emt 0:15:15]} 27. Ne5 {[%emt 0:02:05]} Bf6 {[%emt 0:06:02]} 28. Qc2 {[%emt 0:09:50]} Bxe5 {[%emt 0:00:55]} 29. fxe5 {[%emt 0:00:20]} Rd8 {[%emt 0:03:00]} 30. Rxd8+ {[%emt 0:00:47]} Kxd8 $11 {[%emt 0:00:08][%mdl 4096] Endgame. KQB-KQN} 31. Bd2 {[%emt 0:02:34]} Qd7 {[%emt 0:07:15][%cal Od7d4]} (31... Nxg3 $2 32. Qd3+ Qd7 33. Qxg3 $18) 32. Bf4 {[%emt 0:00:15]} Ke7 {[%emt 0:00:08]} 33. Kb2 {[%emt 0:00:39]} (33. Qd1 $11) 33... Qd4+ $17 {[%emt 0:00:36]} 34. Kb3 {[%emt 0:00:08]} Kd7 {[%emt 0:01:05] Black has more active pieces.} 35. a3 {[%emt 0:01:36]} Kc6 {[%emt 0:00:25]} 36. Ka2 {[%emt 0:00:45]} Kb7 {[%emt 0:01:07]} 37. Kb3 {[%emt 0:00:30]} a6 {[%emt 0:00:32]} 38. Ka2 {[%emt 0:00:14]} Kc7 {[%emt 0:03:27]} 39. Kb3 {[%emt 0:00:18]} a5 {[%emt 0:01:22]} 40. bxa5 {[%emt 0:07:17]} (40. Ka4 $17) 40... bxa5 $19 {[%emt 0:00:25]} 41. Ka4 $2 {[%emt 0:31:34] [#]} (41. a4 $19) 41... Kc6 {[%emt 0:30:48]} (41... Qb6 $142 42. c5 Nxc5+ 43. Qxc5+ Qxc5 44. Kb3 a4+ 45. Kb2 Kb6 46. Bd2 Kb5 (46... Qxe5+ 47. Kc2 Qxg3 48. Kd1 Qf3+ 49. Kc2 Kb5 50. Be1 Kc4 51. Bb4 Qd3+ 52. Kb2 Qe2+ 53. Kb1 Kb3 54. Bd2 Qxd2 55. Ka1 Qe1#) 47. Bf4 Kc4 48. Kc2 Qf2+ (48... Qxa3 49. Kd2 Qf3 50. Be3 a3 51. Bg1 a2 52. Bd4 Kxd4 53. Kc2 a1=R 54. Kd2 Qg2#) 49. Bd2 Qe2 (49... Qxg3 50. Bb4 Qd3+ 51. Kb2 Qe2+ 52. Kb1 Kb3 53. Bd2 Qxd2 54. Ka1 Qe1#) 50. g4 fxg4 (50... Qxg4 51. Be1 Qg2+ 52. Bd2 Qe2 53. Kb2 Qxd2+ 54. Kb1 Kc3 55. Ka1 Qb2#) 51. Kc1 Kb3 (51... Qxe5 52. Kc2 Qe2 53. Kc1 Kb3 54. Kb1 Qxd2 55. Ka1 Qe1#) 52. Kb1 Qxd2 53. Ka1 Qe1#) 42. Kb3 {[%emt 0:00:38]} Kc5 $2 {[%emt 0:01:47]} (42... a4+ $19 {and Black stays clearly on top.} 43. Ka2 (43. Kxa4 $2 Qb6 $19) 43... Kc5) 43. Ka4 $2 {[%emt 0:00:32][%mdl 8192]} (43. a4 $17) 43... Nc3+ {[%emt 0:01:59]} ({Stronger than} 43... Qxc4+ 44. Qxc4+ Kxc4 45. Kxa5 $11) 44. Kb3 {[%emt 0:00:08]} Qxc4+ {[%emt 0:00:00]} 45. Kb2 {[%emt 0:00:00]} Na4+ {[%emt 0:00:00]} (45... Nd5 $142 46. Bd2 a4) 46. Kb1 {[%emt 0:00:00]} Qxc2+ {[%emt 0:00:00]} 47. Kxc2 {[%emt 0:00:00] KB-KN} Kd4 $2 {[%emt 0:00:00]} (47... Kb5 $19 48. Kb3 Nc5+ 49. Kc3 Ka4) 48. Bd2 $11 {[%emt 0:00:00]} Kxe5 {[%emt 0:00:00]} 49. Bxa5 {[%emt 0:00:00] [#] Kb3 would now be deadly.} Kd5 {[%emt 0:00:00] And now ...Nc5 would win.} 50. Kb3 $2 {[%emt 0:00:00][%mdl 8192]} (50. Bb4 $11 {and White is okay.}) 50... Nc5+ $19 {[%emt 0:00:00]} 51. Kb4 {[%emt 0:00:00]} Kc6 {[%emt 0:00:00] Hoping for ...Nb7.} 52. Kc4 {[%emt 0:00:00]} Ne4 {[%emt 0:00:00]} 53. Be1 {[%emt 0:00:00]} (53. Bc3 {was necessary.} Nf6 (53... Nxg3 54. Bxg7 Nxh5 55. Bxh6 $15) (53... Nxc3 54. Kxc3 Kd5 55. Kd3 $11) 54. Be5) 53... Nf6 {[%emt 0:00:00]} 54. Kd4 {[%emt 0:00:00]} Nxh5 {[%emt 0:00:00]} 55. Ke5 {[%emt 0:00:00]} Kd7 {[%emt 0:00:00]} 56. a4 {[%emt 0:00:00]} Nf6 {[%emt 0:00:00] Threatens to win with ...Ng4+.} 57. a5 {[%emt 0:00:00]} Ng4+ {[%emt 0:00:00]} 58. Kd4 {[%emt 0:00:00]} Kc6 {[%emt 0:00:00]} 59. Kc4 {[%emt 0:00:00]} Ne5+ {[%emt 0:00:00]} 60. Kb3 {[%emt 0:00:00]} g5 {[%emt 0:00:00]} 61. Bc3 {[%emt 0:00:00]} Ng4 {[%emt 0:00:00]} 62. Kc4 {[%emt 0:00:00]} h5 {[%emt 0:00:00] ( -> ...h4)} 63. Be1 {[%emt 0:00:00]} Ne5+ {[%emt 0:00:00] Black mates.} 64. Kb3 {[%emt 0:00:00]} Nd3 {[%emt 0:00:00]} 65. Bc3 {[%emt 0:00:00]} h4 {[%emt 0:00:00]} 66. gxh4 {[%emt 0:00:00]} gxh4 {[%emt 0:00:00] Never resign too early!   Weighted Error Value: White=0.81/Black=0.69.  Loses game:     	White=1     	Black=1      Missed win:     	White=2     	---        Mistake:       	White=4     	Black=2      Inaccurate:     	White=2     	Black=3      OK:         	White=8     	Black=9      Best:        	White=4     	Black=4} 0-1

[Event "WSTCC-50 2024"]
[Site "Krakow"]
[Date "2024.07.02"]
[Round "1.7"]
[White "Metcalfe, Allister"]
[Black "Staeblein, Christoph"]
[Result "0-1"]
[ECO "A18"]
[WhiteElo "1889"]
[BlackElo "1991"]
[Annotator "NA RC"]
[PlyCount "78"]
[EventDate "2024.07.01"]
[EventType "team-tourn"]
[EventCountry "POL"]
[SourceTitle "playchess.com"]
[Source "ChessBase"]
[SourceQuality "1"]
[TimeControl "40/5400+30:1800+30"]

1. c4 {[%emt 0:00:12]} Nf6 {[%emt 0:00:40]} 2. Nc3 {[%emt 0:00:58]} e6 {[%emt 0:00:06]} 3. e4 {[%emt 0:01:27]} d5 {[%emt 0:00:10]} 4. e5 {[%emt 0:00:45]} d4 {[%emt 0:00:09]} 5. exf6 {[%emt 0:00:14]} dxc3 {[%emt 0:00:08]} 6. bxc3 {[%emt 0:00:19]} Qxf6 {[%emt 0:00:08]} 7. d4 {[%emt 0:00:37]} e5 {[%emt 0:02:21]} 8. Nf3 {[%emt 0:02:40]} exd4 {[%emt 0:00:12]} 9. Bg5 {[%emt 0:05:48]} Qe6+ {[%emt 0:00:19]} 10. Be2 {[%emt 0:00:26]} Be7 {[%emt 0:02:34]} 11. Bxe7 {[%emt 0:16:45]} d3 {[%emt 0:13:55]} 12. Qxd3 {[%emt 0:03:33]} Qxe7 {[%emt 0:00:21]} 13. O-O {[%emt 0:00:13]} O-O {[%emt 0:00:12]} 14. Rfe1 {[%emt 0:02:11]} Qf6 {[%emt 0:14:08]} 15. Qd4 {[%emt 0:09:56]} Nc6 {[%emt 0:14:54]} 16. Qxf6 {[%emt 0:00:25]} gxf6 {[%emt 0:00:08]} 17. Nd4 {[%emt 0:00:51]} Bd7 {[%emt 0:08:59]} 18. Bf3 {[%emt 0:02:24]} Nxd4 {[%emt 0:24:45]} 19. cxd4 {[%emt 0:00:07]} Rab8 {[%emt 0:00:16]} 20. Re7 {[%emt 0:02:52]} Rfd8 {[%emt 0:01:14]} 21. h3 {[%emt 0:07:41]} Kf8 {[%emt 0:03:00]} 22. Rae1 {[%emt 0:01:35]} Re8 {[%emt 0:00:18]} 23. Rxe8+ {[%emt 0:00:08]} Bxe8 {[%emt 0:00:09]} 24. Rb1 {[%emt 0:02:49]} b6 {[%emt 0:00:23]} 25. Be4 {[%emt 0:02:32]} h6 {[%emt 0:01:05]} 26. f4 {[%emt 0:03:00]} Rd8 {[%emt 0:00:40]} 27. d5 {[%emt 0:00:36]} Bd7 {[%emt 0:03:02]} 28. Kf2 {[%emt 0:00:36]} Ke7 {[%emt 0:00:17]} 29. Ke3 {[%emt 0:03:33]} Kd6 {[%emt 0:00:31]} 30. Kd3 {[%emt 0:02:00]} Re8 {[%emt 0:00:33]} 31. f5 {[%emt 0:00:43]} Ba4 {[%emt 0:01:09]} 32. Rb2 {[%emt 0:00:42]} Kc5 {[%emt 0:00:21]} 33. a3 {[%emt 0:00:26]} a5 {[%emt 0:00:45]} 34. Rf2 {[%emt 0:00:53]} Bb3 {[%emt 0:01:13]} 35. Bf3 {[%emt 0:02:48]} Bxc4+ {[%emt 0:00:16]} 36. Kc3 {[%emt 0:00:28]} Re3+ {[%emt 0:00:28]} 37. Kb2 {[%emt 0:01:50]} Rb3+ {[%emt 0:00:20]} 38. Kc1 {[%emt 0:00:23]} Rxa3 {[%emt 0:00:18]} 39. Be4 {[%emt 0:02:51]} Ra1+ {[%emt 0:00:37]} 0-1

[Event "WSTCC-50 2024"]
[Site "Krakow"]
[Date "2024.07.02"]
[Round "1.8"]
[White "Davies, Nigel R"]
[Black "Jhunjhnuwala, Suresh"]
[Result "1-0"]
[ECO "D02"]
[WhiteElo "2325"]
[BlackElo "1888"]
[Annotator "TA"]
[PlyCount "41"]
[EventDate "2024.07.01"]
[EventType "team-tourn"]
[EventCountry "POL"]
[SourceTitle "playchess.com"]
[Source "ChessBase"]
[SourceQuality "1"]
[TimeControl "40/5400+30:1800+30"]

{[%evp 13,41,36,71,52,206,206,204,194,197,212,202,206,207,204,285,283,429,422,503,491,664,652,808,782,1016,940,1602,1050,2213,1611]} 1. d4 {[%emt 0:00:14]} d5 {[%emt 0:00:36]} 2. Nf3 {[%emt 0:00:14]} Bf5 {[%emt 0:01:40]} 3. c4 {[%emt 0:00:25]} e6 {[%emt 0:00:43]} 4. Nc3 {[%emt 0:02:41]} c6 {[%emt 0:04:50]} 5. Qb3 {[%emt 0:00:56]} Qb6 {[%emt 0:03:12]} 6. c5 {[%emt 0:01:18]} Qxb3 {[%emt 0:06:02]} 7. axb3 {[%emt 0:00:31]} Na6 {[%emt 0:01:46]} 8. e4 {[%emt 0:02:39]} dxe4 $2 {[%emt 0:06:30] [#]} ({Black should play} 8... Nb4 $1 $14 9. Ra4 (9. exf5 Nc2+ 10. Kd1 Nxa1 $15) 9... Nc2+ (9... dxe4 10. Rxb4 exf3 11. Rxb7 $16) 10. Kd2 dxe4) 9. Bxa6 $18 {[%emt 0:00:10]} bxa6 {[%emt 0:00:34]} 10. Ne5 {[%emt 0:00:42] White is clearly better.} f6 {[%emt 0:14:07]} 11. Nxc6 {[%emt 0:00:34][%cal Ob3b4] A dynamic duo of knights.} Ne7 {[%emt 0:05:27]} 12. Rxa6 {[%emt 0:08:48][%cal Ba1a6,Ba6c6,Bc6a6][%mdl 32]} Nxc6 {[%emt 0:01:04]} 13. Rxc6 {[%emt 0:00:09]} Kd7 {[%emt 0:00:11] Black is weak on the dark squares} 14. Ra6 {[%emt 0:00:09] Black must now prevent b4.} Kc7 {[%emt 0:01:38]} (14... e5 $142 15. c6+ Kd8 16. dxe5 Bc8) 15. b4 {[%emt 0:01:55][%cal Bb3b4,Bb4b5][%mdl 32] White is clearly winning.} Be7 {[%emt 0:02:21]} 16. Be3 {[%emt 0:02:30]} Kb7 {[%emt 0:00:41]} 17. b5 {[%emt 0:00:12]} Bg6 {[%emt 0:12:06]} 18. O-O {[%emt 0:00:37]} f5 {[%emt 0:07:13][%cal Bf6f5,Bf5f4][%mdl 32]} 19. Rfa1 {[%emt 0:01:03] [#] Hoping for c6+.} e5 {[%emt 0:07:19]} 20. d5 {[%emt 0:00:38]} f4 {[%emt 0:00:13]} 21. c6+ {[%emt 0:00:19] Black got outplayed after the opening.   Weighted Error Value: White=0.04 (flawless) /Black=0.99.  Mistake:       	---       	Black=2      Inaccurate:     	---       	Black=2      OK:         	White=7     	Black=3      Best:        	White=1     	---} 1-0

[Event "WSTCC-50 2024"]
[Site "Krakow"]
[Date "2024.07.02"]
[Round "1.8"]
[White "Kantorik, Marian"]
[Black "Lyons, Brendan"]
[Result "1-0"]
[ECO "D21"]
[WhiteElo "2198"]
[BlackElo "1920"]
[Annotator "RC"]
[PlyCount "65"]
[EventDate "2024.07.01"]
[EventType "team-tourn"]
[EventCountry "POL"]
[SourceTitle "playchess.com"]
[Source "ChessBase"]
[SourceQuality "1"]
[TimeControl "40/5400+30:1800+30"]

1. d4 {[%emt 0:00:38]} d5 {[%emt 0:00:06]} 2. c4 {[%emt 0:00:20]} dxc4 {[%emt 0:00:10]} 3. Nf3 {[%emt 0:00:07]} c5 {[%emt 0:01:14]} 4. d5 {[%emt 0:01:15]} e6 {[%emt 0:00:06]} 5. e4 {[%emt 0:00:36]} exd5 {[%emt 0:01:19]} 6. exd5 {[%emt 0:01:36]} Bd6 {[%emt 0:00:47]} 7. Bxc4 {[%emt 0:00:41]} Ne7 {[%emt 0:01:19]} 8. Nc3 {[%emt 0:02:17]} a6 {[%emt 0:07:59]} 9. a4 {[%emt 0:03:44]} O-O {[%emt 0:01:57]} 10. O-O {[%emt 0:03:22]} Bg4 {[%emt 0:03:05]} 11. h3 {[%emt 0:03:16]} Bf5 {[%emt 0:11:53]} 12. Nh4 {[%emt 0:11:54]} Re8 {[%emt 0:10:24]} 13. Bg5 {[%emt 0:05:16]} Bg6 {[%emt 0:18:27]} 14. Nxg6 {[%emt 0:02:09]} hxg6 {[%emt 0:00:20]} 15. Ne4 {[%emt 0:02:48]} Qb6 {[%emt 0:05:22]} 16. a5 {[%emt 0:03:56]} Qc7 {[%emt 0:02:36]} 17. Re1 {[%emt 0:14:09]} Nd7 {[%emt 0:02:37]} 18. Nxd6 {[%emt 0:13:39]} Qxd6 {[%emt 0:00:33]} 19. Bxe7 {[%emt 0:00:57]} Rxe7 {[%emt 0:01:47]} 20. Rxe7 {[%emt 0:00:06]} Qxe7 {[%emt 0:00:14]} 21. d6 {[%emt 0:00:05]} Qf6 {[%emt 0:04:24]} 22. Qd5 {[%emt 0:04:04]} Ne5 {[%emt 0:11:12]} 23. Qxb7 {[%emt 0:05:54]} Rd8 {[%emt 0:02:09]} 24. Bxa6 {[%emt 0:00:24]} Rxd6 {[%emt 0:02:02]} 25. Bf1 {[%emt 0:03:36]} Rd2 {[%emt 0:00:37]} 26. Qc8+ {[%emt 0:00:18]} Kh7 {[%emt 0:01:13]} 27. Qxc5 {[%emt 0:00:08]} Nd7 {[%emt 0:04:56]} 28. Qe3 {[%emt 0:04:56]} Qxb2 {[%emt 0:03:25]} 29. Re1 {[%emt 0:01:28]} Rd5 {[%emt 0:01:08]} 30. a6 {[%emt 0:02:42]} Re5 {[%emt 0:01:12]} 31. Qc1 {[%emt 0:00:06]} Qa2 {[%emt 0:00:38]} 32. Qa1 {[%emt 0:04:36]} Qd2 {[%emt 0:00:43]} 33. Rxe5 {[%emt 0:00:21]} 1-0

[Event "WSTCC-50 2024"]
[Site "Krakow"]
[Date "2024.07.02"]
[Round "1.8"]
[White "Koop, Thilo"]
[Black "Schutte, Andre"]
[Result "1-0"]
[ECO "B10"]
[WhiteElo "2088"]
[BlackElo "1817"]
[Annotator "NA RC"]
[PlyCount "139"]
[EventDate "2024.07.01"]
[EventType "team-tourn"]
[EventCountry "POL"]
[SourceTitle "playchess.com"]
[Source "ChessBase"]
[SourceQuality "1"]
[TimeControl "40/5400+30:1800+30"]

1. e4 {[%emt 0:00:04]} c6 {[%emt 0:00:08]} 2. Nf3 {[%emt 0:00:11]} d5 {[%emt 0:00:06]} 3. exd5 {[%emt 0:00:13]} cxd5 {[%emt 0:00:05]} 4. Ne5 {[%emt 0:00:10]} Qc7 {[%emt 0:01:37]} 5. d4 {[%emt 0:01:58]} Nf6 {[%emt 0:05:02]} 6. c3 {[%emt 0:02:44]} Nc6 {[%emt 0:03:20]} 7. Bb5 {[%emt 0:00:33]} a6 {[%emt 0:01:25]} 8. Qa4 {[%emt 0:04:01]} Bd7 {[%emt 0:01:20]} 9. Nxd7 {[%emt 0:08:23]} Nxd7 {[%emt 0:02:19]} 10. O-O {[%emt 0:01:42]} Nb6 {[%emt 0:02:23]} 11. Bxc6+ {[%emt 0:00:20]} Qxc6 {[%emt 0:00:10]} 12. Qd1 {[%emt 0:02:05]} e6 {[%emt 0:00:27]} 13. Nd2 {[%emt 0:04:47]} Bd6 {[%emt 0:02:40]} 14. Qg4 {[%emt 0:01:09]} O-O {[%emt 0:18:06]} 15. Nf3 {[%emt 0:01:50]} Qc7 {[%emt 0:00:34]} 16. Re1 {[%emt 0:09:11]} Kh8 {[%emt 0:06:18]} 17. Bg5 {[%emt 0:06:26]} Be7 {[%emt 0:10:36]} 18. Bf4 {[%emt 0:07:04]} Qd8 {[%emt 0:00:36]} 19. Re2 {[%emt 0:01:55]} Nd7 {[%emt 0:02:23]} 20. Qh3 {[%emt 0:11:49]} Rg8 {[%emt 0:09:48]} 21. Rae1 {[%emt 0:09:55]} g5 {[%emt 0:11:46]} 22. Ne5 {[%emt 0:01:48]} Nxe5 {[%emt 0:02:04]} 23. Bxe5+ {[%emt 0:00:08]} Bf6 {[%emt 0:00:07]} 24. Qh5 {[%emt 0:05:13]} Bxe5 {[%emt 0:01:18]} 25. Rxe5 {[%emt 0:00:25]} Qf6 {[%emt 0:04:22]} 26. R1e3 {[%emt 0:02:08]} Rg7 {[%emt 0:03:16]} 27. Rf3 {[%emt 0:01:19]} Qe7 {[%emt 0:01:07]} 28. Rfe3 {[%emt 0:00:20]} Qf6 {[%emt 0:00:25]} 29. h3 {[%emt 0:00:39]} Rag8 {[%emt 0:02:26]} 30. Qg4 {[%emt 0:01:24]} Qf4 {[%emt 0:00:54]} 31. g3 {[%emt 0:01:23]} Qxg4 {[%emt 0:00:54]} 32. hxg4 {[%emt 0:00:10]} Rc8 {[%emt 0:00:29]} 33. Kg2 {[%emt 0:00:23]} h6 {[%emt 0:01:14]} 34. Kh3 {[%emt 0:01:22]} Rcg8 {[%emt 0:02:08]} 35. Re1 {[%emt 0:00:56]} Kh7 {[%emt 0:00:29]} 36. Kg2 {[%emt 0:00:43]} Kg6 {[%emt 0:00:49]} 37. Rh1 {[%emt 0:00:27]} Rc8 {[%emt 0:00:58]} 38. f4 {[%emt 0:00:49]} gxf4 {[%emt 0:00:54]} 39. gxf4 {[%emt 0:00:02]} Rh8 {[%emt 0:01:14]} 40. Kf3 {[%emt 0:00:38]} Rgh7 {[%emt 0:01:23]} 41. f5+ {[%emt 0:36:36]} Kf6 {[%emt 0:30:57]} 42. Rhe1 {[%emt 0:00:21]} h5 {[%emt 0:01:08]} 43. g5+ {[%emt 0:05:32]} Kxg5 {[%emt 0:00:34]} 44. fxe6+ {[%emt 0:00:08]} Kf6 {[%emt 0:01:16]} 45. Kf4 {[%emt 0:00:28]} fxe6 {[%emt 0:00:00]} 46. Rxe6+ {[%emt 0:00:00]} Kf7 {[%emt 0:00:00]} 47. Kf5 {[%emt 0:00:00]} h4 {[%emt 0:00:00]} 48. Re7+ {[%emt 0:00:00]} Kf8 {[%emt 0:00:00]} 49. Re8+ {[%emt 0:00:00]} Kg7 {[%emt 0:00:00]} 50. R1e7+ {[%emt 0:00:00]} Kh6 {[%emt 0:00:00]} 51. Rxh8 {[%emt 0:00:00]} Rxh8 {[%emt 0:00:00]} 52. Kg4 {[%emt 0:00:00]} Kg6 {[%emt 0:00:00]} 53. Kh3 {[%emt 0:00:00]} Kf5 {[%emt 0:00:00]} 54. Re5+ {[%emt 0:00:00]} Kf4 {[%emt 0:00:00]} 55. Rxd5 {[%emt 0:00:00]} Rg8 {[%emt 0:00:00]} 56. Rh5 {[%emt 0:00:00]} Rg3+ {[%emt 0:00:00]} 57. Kh2 {[%emt 0:00:00]} Kg4 {[%emt 0:00:00]} 58. Rh7 {[%emt 0:00:00]} Rd3 {[%emt 0:00:00]} 59. Rg7+ {[%emt 0:00:00]} Kf4 {[%emt 0:00:00]} 60. Rxb7 {[%emt 0:00:00]} h3 {[%emt 0:00:00]} 61. Rf7+ {[%emt 0:00:00]} Kg4 {[%emt 0:00:00]} 62. Rf2 {[%emt 0:00:00]} a5 {[%emt 0:00:00]} 63. a4 {[%emt 0:00:00]} Rd1 {[%emt 0:00:00]} 64. Rc2 {[%emt 0:00:47]} Rd3 {[%emt 0:00:00]} 65. b4 {[%emt 0:00:54]} axb4 {[%emt 0:00:00]} 66. cxb4 {[%emt 0:00:06]} Rxd4 {[%emt 0:00:00]} 67. Rb2 {[%emt 0:00:13]} Kf5 {[%emt 0:00:00]} 68. a5 {[%emt 0:00:28]} Ke6 {[%emt 0:00:00]} 69. a6 {[%emt 0:01:10]} Rd8 {[%emt 0:00:00]} 70. b5 {[%emt 0:00:14]} 1-0

[Event "WSTCC-50 2024"]
[Site "Krakow"]
[Date "2024.07.02"]
[Round "1.9"]
[White "Olafsson, Helgi"]
[Black "Horvath, Julia"]
[Result "1-0"]
[ECO "D70"]
[WhiteElo "2466"]
[BlackElo "2116"]
[Annotator "TA"]
[PlyCount "67"]
[EventDate "2024.07.01"]
[EventType "team-tourn"]
[EventCountry "POL"]
[SourceTitle "playchess.com"]
[Source "ChessBase"]
[SourceQuality "1"]
[TimeControl "40/5400+30:1800+30"]

{[%evp 18,67,32,14,27,-1,30,26,21,25,35,31,36,19,86,77,127,119,143,124,133,135,137,134,176,193,162,169,174,176,170,166,221,216,279,234,680,679,672,657,748,738,1018,1030,1389,894,5606,872,846,824,847,810]} 1. d4 {[%emt 0:00:11]} Nf6 {[%emt 0:00:07]} 2. c4 {[%emt 0:00:42]} g6 {[%emt 0:00:08]} 3. Nf3 {[%emt 0:03:41]} Bg7 {[%emt 0:00:08]} 4. g3 {[%emt 0:00:44]} c6 {[%emt 0:00:18]} 5. Bg2 {[%emt 0:02:01]} O-O {[%emt 0:00:17]} 6. O-O {[%emt 0:02:08]} d5 {[%emt 0:00:27]} 7. Qa4 {[%emt 0:02:44]} Nbd7 {[%emt 0:08:08]} 8. cxd5 {[%emt 0:01:15]} cxd5 {[%emt 0:00:51]} 9. Nc3 {[%emt 0:00:20]} Nb6 {[%emt 0:00:34]} 10. Qb3 {[%emt 0:00:35]} Ne4 {[%emt 0:05:57]} 11. Rd1 {[%emt 0:06:03]} Nxc3 {[%emt 0:01:47]} 12. Qxc3 {[%emt 0:00:35]} Bf5 {[%emt 0:01:01] White has an edge.} 13. b3 {[%emt 0:01:10]} Rc8 {[%emt 0:06:34]} 14. Qa5 {[%emt 0:01:22]} a6 {[%emt 0:04:04]} 15. Bf4 {[%emt 0:11:12]} Be4 {[%emt 0:19:35]} (15... e6 $11) 16. Rac1 {[%emt 0:04:40]} Na8 {[%emt 0:09:49] [#]} (16... Bc2 $142) 17. Qb4 $1 $16 {[%emt 0:02:26]} Qd7 {[%emt 0:00:33]} 18. Ne5 {[%emt 0:03:06]} Bxe5 {[%emt 0:01:33]} 19. dxe5 {[%emt 0:00:46]} (19. Bxe5 Bxg2 20. Kxg2 g5 $15) 19... Bxg2 {[%emt 0:00:39]} 20. Kxg2 {[%emt 0:01:55] Black is weak on the dark squares} b5 {[%emt 0:03:13]} 21. Bg5 {[%emt 0:04:49]} f6 {[%emt 0:02:15]} 22. Rxc8 {[%emt 0:01:38]} Qxc8 {[%emt 0:08:22]} 23. Bh6 {[%emt 0:00:36]} Re8 {[%emt 0:01:00]} 24. Qd4 $36 {[%emt 0:08:00][%mdl 2048] Prevents Nb6. Keeping Black busy.} Nc7 {[%emt 0:05:41]} (24... Kf7 {keeps fighting.} 25. exf6 (25. Qxd5+ Qe6 $18) 25... exf6 26. Qxd5+ Re6) 25. exf6 $18 {[%emt 0:00:12]} e5 {[%emt 0:01:55]} 26. Qa7 {[%emt 0:01:16] [#] White wants to mate with Rc1.} Qd7 $2 {[%emt 0:01:47]} (26... Qb8 27. Qc5 d4) 27. Rc1 {[%emt 0:00:14] White is clearly winning.} Rc8 {[%emt 0:00:12]} 28. Bd2 {[%emt 0:00:37][%cal Bh6d2,Bd2a5,Ba5c7][%mdl 32]} d4 {[%emt 0:04:10]} 29. Ba5 {[%emt 0:00:44]} d3 {[%emt 0:00:42]} 30. exd3 {[%emt 0:00:39]} (30. Rxc7 $2 {perishes.} Rxc7 31. Qb8+ (31. Bxc7 $2 d2 $19) (31. Qxc7 $2 Qxc7 32. Bxc7 d2 $19) 31... Qc8 $19 (31... Rc8 $2 32. Qxe5 Re8 33. f7+ Qxf7 34. Qd6 $19)) 30... Qxd3 {[%emt 0:00:32]} 31. Qb7 {[%emt 0:00:27] Active counter play!} Qf5 {[%emt 0:04:47]} 32. Rxc7 {[%emt 0:01:02]} (32. Bxc7 $142 Qd7 33. Rd1 Qxc7 34. Rd8+ (34. Qxa6 Qc6+ 35. Qxc6 Rxc6 $18) 34... Kf7 35. Rd7+ (35. Qxc8 Qxc8 36. Rxc8 e4 $18) 35... Qxd7 36. Qxd7+ Kxf6 37. Qxc8) 32... Rxc7 {[%emt 0:00:12]} 33. Bxc7 {[%emt 0:00:11] White threatens Qd5+ and mate.} Qxf6 {[%emt 0:00:22]} 34. Qd5+ {[%emt 0:00:09] White took control after the opening.   Weighted Error Value: White=0.12 (very precise) /Black=0.54.  Mistake:       	---       	Black=4      Inaccurate:     	White=1     	Black=2      OK:         	White=7     	Black=3      Best:        	White=1     	Black=1      Strong:       	White=1     	---} 1-0